[Event "Titled Tuesday Blitz August 22 Late 2023"]
[White "Alex_Sahakyan2006"]
[Black "Ovezdurdyyeva, Jemal"]
[BlackFideId "14001888"]
[WhiteElo "2685"]
[BlackElo "2432"]
[Result "1-0"]
[Round "10"]
[TimeControl "180+1"]
[Date "2023.08.22"]
[WhiteClock "0:02:22"]
[BlackClock "0:01:54"]
[Board "34"]

1. e4 {[%clk 0:03:00]}  d6 {[%clk 0:03:00]} 2. d4 {[%clk 0:02:54]}  Nf6 {[%clk 0:03:00]} 3. Nc3 {[%clk 0:02:51]}  g6 {[%clk 0:03:01]} 4. Bg5 {[%clk 0:02:46]}  Bg7 {[%clk 0:03:00]} 5. e5 {[%clk 0:02:45]}  Nfd7 {[%clk 0:02:53]} 6. Nd5 {[%clk 0:02:40]}  f6 {[%clk 0:02:47]} 7. exf6 {[%clk 0:02:37]}  exf6 {[%clk 0:02:46]} 8. Be3 {[%clk 0:02:37]}  O-O {[%clk 0:02:44]} 9. Bc4 {[%clk 0:02:32]}  Kh8 {[%clk 0:02:43]} 10. h4 {[%clk 0:02:31]}  c5 {[%clk 0:02:44]} 11. h5 {[%clk 0:02:31]}  b5 {[%clk 0:02:36]} 12. hxg6 {[%clk 0:02:23]}  bxc4 {[%clk 0:02:36]} 13. Rxh7+ {[%clk 0:02:23]}  Kg8 {[%clk 0:02:36]} 14. Qh5 {[%clk 0:02:23]}  Re8 {[%clk 0:01:56]} 15. Rh8+ {[%clk 0:02:21]}  Bxh8 {[%clk 0:01:54]} 16. Qh7+ {[%clk 0:02:21]}  Kf8 {[%clk 0:01:54]} 17. Qf7# {[%clk 0:02:22]} 1-0


[Site "https://www.chess.com"]

[Event "Titled Tuesday Blitz August 22 Late 2023"]
[White "Karas, Marek"]
[Black "Rustemov, Alexander"]
[WhiteFideId "14928558"]
[BlackFideId "4119002"]
[WhiteElo "2460"]
[BlackElo "2857"]
[Result "0-1"]
[Round "10"]
[TimeControl "180+1"]
[Date "2023.08.22"]
[WhiteClock "0:00:00"]
[BlackClock "0:00:24"]
[Board "35"]

1. d4 {[%clk 0:03:00]}  g6 {[%clk 0:02:56]} 2. e4 {[%clk 0:02:59]}  Bg7 {[%clk 0:02:55]} 3. Nf3 {[%clk 0:03:00]}  d6 {[%clk 0:02:55]} 4. Bc4 {[%clk 0:03:00]}  e6 {[%clk 0:02:54]} 5. Qe2 {[%clk 0:02:59]}  Ne7 {[%clk 0:02:54]} 6. Bb3 {[%clk 0:02:59]}  Nd7 {[%clk 0:02:54]} 7. O-O {[%clk 0:02:59]}  b6 {[%clk 0:02:54]} 8. c3 {[%clk 0:02:58]}  Bb7 {[%clk 0:02:54]} 9. Bf4 {[%clk 0:02:58]}  O-O {[%clk 0:02:53]} 10. Nbd2 {[%clk 0:02:58]}  h6 {[%clk 0:02:49]} 11. Bg3 {[%clk 0:02:58]}  Nf6 {[%clk 0:02:38]} 12. h3 {[%clk 0:02:54]}  g5 {[%clk 0:02:18]} 13. e5 {[%clk 0:02:43]}  Nh5 {[%clk 0:02:15]} 14. Bh2 {[%clk 0:02:38]}  Ng6 {[%clk 0:02:15]} 15. Qe3 {[%clk 0:02:15]}  Nhf4 {[%clk 0:02:14]} 16. Bxf4 {[%clk 0:02:11]}  Nxf4 {[%clk 0:02:13]} 17. Rad1 {[%clk 0:02:07]}  dxe5 {[%clk 0:02:09]} 18. dxe5 {[%clk 0:02:04]}  Qd3 {[%clk 0:02:09]} 19. Rfe1 {[%clk 0:01:02]}  Rad8 {[%clk 0:02:03]} 20. Bc4 {[%clk 0:00:54]}  Qc2 {[%clk 0:01:48]} 21. Rb1 {[%clk 0:00:40]}  Rd7 {[%clk 0:01:41]} 22. Ne4 {[%clk 0:00:37]}  Rfd8 {[%clk 0:01:34]} 23. Bb3 {[%clk 0:00:32]}  Qd3 {[%clk 0:01:31]} 24. Nf6+ {[%clk 0:00:19]}  Bxf6 {[%clk 0:01:29]} 25. exf6 {[%clk 0:00:20]}  Bxf3 {[%clk 0:01:18]} 26. Qxf3 {[%clk 0:00:21]}  Qxf3 {[%clk 0:01:17]} 27. gxf3 {[%clk 0:00:21]}  Nh5 {[%clk 0:01:13]} 28. h4 {[%clk 0:00:11]}  gxh4 {[%clk 0:01:07]} 29. Kg2 {[%clk 0:00:08]}  Nxf6 {[%clk 0:01:07]} 30. Rh1 {[%clk 0:00:07]}  Rd2 {[%clk 0:01:04]} 31. Rxh4 {[%clk 0:00:07]}  h5 {[%clk 0:01:02]} 32. Rf4 {[%clk 0:00:07]}  Ne8 {[%clk 0:00:45]} 33. Rh4 {[%clk 0:00:07]}  Ng7 {[%clk 0:00:44]} 34. Rhh1 {[%clk 0:00:05]}  Kf8 {[%clk 0:00:40]} 35. Rhe1 {[%clk 0:00:05]}  Nf5 {[%clk 0:00:40]} 36. Re5 {[%clk 0:00:05]}  Ke7 {[%clk 0:00:35]} 37. Rbe1 {[%clk 0:00:04]}  Kf6 {[%clk 0:00:34]} 38. R5e2 {[%clk 0:00:05]}  Rxe2 {[%clk 0:00:29]} 39. Rxe2 {[%clk 0:00:06]}  h4 {[%clk 0:00:29]} 40. Re4 {[%clk 0:00:06]}  c5 {[%clk 0:00:29]} 41. Bc4 {[%clk 0:00:05]}  Rd2 {[%clk 0:00:29]} 42. Re2 {[%clk 0:00:05]}  Rxe2 {[%clk 0:00:28]} 43. Bxe2 {[%clk 0:00:06]}  Kg5 {[%clk 0:00:29]} 44. Bd3 {[%clk 0:00:05]}  Ne7 {[%clk 0:00:29]} 45. Be4 {[%clk 0:00:04]}  f5 {[%clk 0:00:28]} 46. Bb7 {[%clk 0:00:05]}  Ng6 {[%clk 0:00:28]} 47. Bc8 {[%clk 0:00:03]}  Nf4+ {[%clk 0:00:28]} 48. Kh2 {[%clk 0:00:03]}  e5 {[%clk 0:00:25]} 49. Bb7 {[%clk 0:00:03]}  Nd3 {[%clk 0:00:25]} 50. b3 {[%clk 0:00:00]}  Nc1 {[%clk 0:00:24]} 0-1


[Site "https://www.chess.com"]

[Event "Titled Tuesday Blitz August 22 Late 2023"]
[White "Santos Flores, Alberto"]
[Black "Dourerassou, Jonathan"]
[WhiteFideId "3601234"]
[BlackFideId "628050"]
[WhiteElo "2576"]
[BlackElo "2705"]
[Result "0-1"]
[Round "10"]
[TimeControl "180+1"]
[Date "2023.08.22"]
[WhiteClock "0:01:20"]
[BlackClock "0:01:58"]
[Board "38"]

1. e4 {[%clk 0:03:00]}  c5 {[%clk 0:02:59]} 2. Nf3 {[%clk 0:02:56]}  Nc6 {[%clk 0:02:58]} 3. Nc3 {[%clk 0:02:56]}  e6 {[%clk 0:02:58]} 4. d4 {[%clk 0:02:55]}  cxd4 {[%clk 0:02:59]} 5. Nxd4 {[%clk 0:02:56]}  Nf6 {[%clk 0:03:00]} 6. Ndb5 {[%clk 0:02:55]}  d6 {[%clk 0:03:00]} 7. Bf4 {[%clk 0:02:56]}  e5 {[%clk 0:03:00]} 8. Bg5 {[%clk 0:02:56]}  a6 {[%clk 0:03:01]} 9. Na3 {[%clk 0:02:57]}  b5 {[%clk 0:03:01]} 10. Bxf6 {[%clk 0:02:57]}  gxf6 {[%clk 0:03:02]} 11. Nd5 {[%clk 0:02:58]}  f5 {[%clk 0:03:02]} 12. c3 {[%clk 0:02:58]}  Bg7 {[%clk 0:03:01]} 13. exf5 {[%clk 0:02:59]}  Bxf5 {[%clk 0:03:01]} 14. Nc2 {[%clk 0:02:59]}  Be6 {[%clk 0:03:02]} 15. Nce3 {[%clk 0:03:00]}  O-O {[%clk 0:03:00]} 16. Bd3 {[%clk 0:03:00]}  f5 {[%clk 0:03:00]} 17. O-O {[%clk 0:03:00]}  Ne7 {[%clk 0:02:58]} 18. Nxe7+ {[%clk 0:03:00]}  Qxe7 {[%clk 0:02:59]} 19. Bxf5 {[%clk 0:03:00]}  Kh8 {[%clk 0:02:48]} 20. Bxe6 {[%clk 0:02:56]}  Qxe6 {[%clk 0:02:49]} 21. Qd5 {[%clk 0:02:54]}  Qg6 {[%clk 0:02:48]} 22. a4 {[%clk 0:02:52]}  Rab8 {[%clk 0:02:45]} 23. axb5 {[%clk 0:02:50]}  Rxb5 {[%clk 0:02:45]} 24. Qd2 {[%clk 0:02:47]}  a5 {[%clk 0:02:40]} 25. Ra2 {[%clk 0:02:47]}  Bh6 {[%clk 0:02:39]} 26. Rfa1 {[%clk 0:02:46]}  d5 {[%clk 0:02:33]} 27. g3 {[%clk 0:02:37]}  Qe4 {[%clk 0:02:30]} 28. Rxa5 {[%clk 0:02:30]}  Rxa5 {[%clk 0:02:30]} 29. Rxa5 {[%clk 0:02:30]}  d4 {[%clk 0:02:30]} 30. cxd4 {[%clk 0:01:46]}  exd4 {[%clk 0:02:31]} 31. Qb4 {[%clk 0:01:44]}  Rxf2 {[%clk 0:01:59]} 32. Ra8+ {[%clk 0:01:32]}  Qxa8 {[%clk 0:01:58]} 33. Qxd4+ {[%clk 0:01:20]}  Bg7 {[%clk 0:01:58]} 0-1


[Site "https://www.chess.com"]

[Event "Titled Tuesday Blitz August 22 Late 2023"]
[White "Tologon tegin, Semetei"]
[Black "Grossboss19"]
[WhiteFideId "13800574"]
[WhiteElo "2615"]
[BlackElo "2547"]
[Result "1-0"]
[Round "10"]
[TimeControl "180+1"]
[Date "2023.08.22"]
[WhiteClock "0:01:40"]
[BlackClock "0:01:01"]
[Board "39"]

1. d4 {[%clk 0:03:00]}  Nf6 {[%clk 0:02:55]} 2. Nc3 {[%clk 0:03:01]}  d5 {[%clk 0:02:54]} 3. Bf4 {[%clk 0:03:01]}  e6 {[%clk 0:02:51]} 4. e3 {[%clk 0:03:01]}  Bb4 {[%clk 0:02:50]} 5. Ne2 {[%clk 0:02:59]}  Nbd7 {[%clk 0:02:47]} 6. a3 {[%clk 0:02:58]}  Ba5 {[%clk 0:02:46]} 7. b4 {[%clk 0:02:57]}  Bb6 {[%clk 0:02:46]} 8. Ng3 {[%clk 0:02:55]}  a5 {[%clk 0:02:46]} 9. b5 {[%clk 0:02:46]}  c5 {[%clk 0:02:41]} 10. bxc6 {[%clk 0:02:44]}  bxc6 {[%clk 0:02:41]} 11. Bd3 {[%clk 0:02:42]}  Ba6 {[%clk 0:02:40]} 12. O-O {[%clk 0:02:42]}  Bxd3 {[%clk 0:02:39]} 13. cxd3 {[%clk 0:02:41]}  Bc7 {[%clk 0:02:32]} 14. Bxc7 {[%clk 0:02:17]}  Qxc7 {[%clk 0:02:33]} 15. Qc2 {[%clk 0:02:12]}  O-O {[%clk 0:02:30]} 16. Na4 {[%clk 0:02:11]}  Rfc8 {[%clk 0:02:27]} 17. Rfc1 {[%clk 0:02:10]}  Qd6 {[%clk 0:02:24]} 18. Nf1 {[%clk 0:02:03]}  e5 {[%clk 0:02:11]} 19. dxe5 {[%clk 0:02:02]}  Nxe5 {[%clk 0:02:11]} 20. h3 {[%clk 0:01:58]}  d4 {[%clk 0:02:03]} 21. Nb6 {[%clk 0:01:56]}  dxe3 {[%clk 0:02:00]} 22. Nxe3 {[%clk 0:01:56]}  Rab8 {[%clk 0:01:34]} 23. Nxc8 {[%clk 0:01:44]}  Rxc8 {[%clk 0:01:35]} 24. Nc4 {[%clk 0:01:44]}  Qd5 {[%clk 0:01:31]} 25. Nb6 {[%clk 0:01:41]}  Qe6 {[%clk 0:01:06]} 26. Nxc8 {[%clk 0:01:41]}  Qxc8 {[%clk 0:01:07]} 27. d4 {[%clk 0:01:41]}  Nf3+ {[%clk 0:01:06]} 28. gxf3 {[%clk 0:01:40]}  Qxh3 {[%clk 0:01:06]} 29. Qxc6 {[%clk 0:01:40]}  h5 {[%clk 0:01:04]} 30. Qc8+ {[%clk 0:01:39]}  Qxc8 {[%clk 0:01:01]} 31. Rxc8+ {[%clk 0:01:40]} 1-0


[Site "https://www.chess.com"]

[Event "Titled Tuesday Blitz August 22 Late 2023"]
[White "Klukin, Kirill"]
[Black "Michalczak, Thomas"]
[WhiteFideId "24199273"]
[BlackFideId "4622634"]
[WhiteElo "2801"]
[BlackElo "2505"]
[Result "1-0"]
[Round "10"]
[TimeControl "180+1"]
[Date "2023.08.22"]
[WhiteClock "0:00:32"]
[BlackClock "0:01:13"]
[Board "42"]

1. f4 {[%clk 0:03:00]}  d5 {[%clk 0:02:56]} 2. Nf3 {[%clk 0:03:01]}  Nf6 {[%clk 0:02:56]} 3. g3 {[%clk 0:03:01]}  g6 {[%clk 0:02:55]} 4. Bg2 {[%clk 0:03:02]}  Bg7 {[%clk 0:02:56]} 5. O-O {[%clk 0:03:03]}  O-O {[%clk 0:02:55]} 6. d3 {[%clk 0:03:04]}  b6 {[%clk 0:02:55]} 7. Nc3 {[%clk 0:03:03]}  Bb7 {[%clk 0:02:55]} 8. e4 {[%clk 0:03:04]}  dxe4 {[%clk 0:02:53]} 9. Ng5 {[%clk 0:03:04]}  Nbd7 {[%clk 0:02:51]} 10. Ngxe4 {[%clk 0:03:02]}  Nxe4 {[%clk 0:02:49]} 11. dxe4 {[%clk 0:03:03]}  Qc8 {[%clk 0:02:47]} 12. Be3 {[%clk 0:03:02]}  Bxc3 {[%clk 0:02:39]} 13. bxc3 {[%clk 0:03:02]}  Nf6 {[%clk 0:02:40]} 14. e5 {[%clk 0:02:48]}  Bxg2 {[%clk 0:02:39]} 15. Kxg2 {[%clk 0:02:49]}  Rd8 {[%clk 0:02:35]} 16. Qf3 {[%clk 0:02:46]}  Nd5 {[%clk 0:02:32]} 17. Bf2 {[%clk 0:02:41]}  Qf5 {[%clk 0:02:21]} 18. Rad1 {[%clk 0:02:33]}  e6 {[%clk 0:02:14]} 19. Rd3 {[%clk 0:02:30]}  h5 {[%clk 0:02:13]} 20. Rfd1 {[%clk 0:02:26]}  b5 {[%clk 0:02:06]} 21. Bc5 {[%clk 0:02:14]}  a6 {[%clk 0:02:05]} 22. R1d2 {[%clk 0:02:07]}  Rd7 {[%clk 0:02:01]} 23. Rd4 {[%clk 0:02:03]}  Rad8 {[%clk 0:01:55]} 24. h3 {[%clk 0:01:54]}  g5 {[%clk 0:01:52]} 25. Qxh5 {[%clk 0:01:17]}  gxf4 {[%clk 0:01:30]} 26. Qxf5 {[%clk 0:01:01]}  exf5 {[%clk 0:01:31]} 27. gxf4 {[%clk 0:01:01]}  Nxf4+ {[%clk 0:01:25]} 28. Kf3 {[%clk 0:01:01]}  Rxd4 {[%clk 0:01:23]} 29. cxd4 {[%clk 0:01:01]}  Nxh3 {[%clk 0:01:13]} 30. Rg2+ {[%clk 0:00:32]} 1-0


[Site "https://www.chess.com"]

[Event "Titled Tuesday Blitz August 22 Late 2023"]
[White "Janaszak, Dawid"]
[Black "Mamedov, Edgar"]
[WhiteFideId "1119206"]
[BlackFideId "13739980"]
[WhiteElo "2516"]
[BlackElo "2672"]
[Result "0-1"]
[Round "10"]
[TimeControl "180+1"]
[Date "2023.08.22"]
[WhiteClock "0:00:00"]
[BlackClock "0:01:04"]
[Board "44"]

1. d4 {[%clk 0:03:00]}  d5 {[%clk 0:02:59]} 2. Bf4 {[%clk 0:03:00]}  e6 {[%clk 0:02:59]} 3. Nf3 {[%clk 0:02:58]}  Bd6 {[%clk 0:02:58]} 4. Bg3 {[%clk 0:02:58]}  Nf6 {[%clk 0:02:58]} 5. Nbd2 {[%clk 0:02:58]}  O-O {[%clk 0:02:58]} 6. e3 {[%clk 0:02:58]}  b6 {[%clk 0:02:58]} 7. Ne5 {[%clk 0:02:55]}  c5 {[%clk 0:02:58]} 8. c3 {[%clk 0:02:54]}  Ba6 {[%clk 0:02:57]} 9. Bxa6 {[%clk 0:02:53]}  Nxa6 {[%clk 0:02:57]} 10. Qa4 {[%clk 0:02:51]}  Qc8 {[%clk 0:02:54]} 11. O-O {[%clk 0:02:48]}  Nc7 {[%clk 0:02:49]} 12. b4 {[%clk 0:02:30]}  cxb4 {[%clk 0:02:47]} 13. cxb4 {[%clk 0:02:29]}  b5 {[%clk 0:02:45]} 14. Qa5 {[%clk 0:02:24]}  Qb7 {[%clk 0:02:40]} 15. Rfc1 {[%clk 0:02:17]}  Rfc8 {[%clk 0:02:39]} 16. Nb3 {[%clk 0:02:09]}  Na6 {[%clk 0:02:34]} 17. Nc5 {[%clk 0:02:07]}  Nxc5 {[%clk 0:02:32]} 18. bxc5 {[%clk 0:02:07]}  Bxe5 {[%clk 0:02:32]} 19. Bxe5 {[%clk 0:02:07]}  Nd7 {[%clk 0:02:32]} 20. Rab1 {[%clk 0:01:58]}  Nxe5 {[%clk 0:02:29]} 21. dxe5 {[%clk 0:01:42]}  Rab8 {[%clk 0:02:28]} 22. f4 {[%clk 0:01:30]}  b4 {[%clk 0:02:22]} 23. Rb2 {[%clk 0:01:10]}  Qb5 {[%clk 0:01:43]} 24. Qxa7 {[%clk 0:01:06]}  Ra8 {[%clk 0:01:39]} 25. Qe7 {[%clk 0:01:05]}  Qd3 {[%clk 0:01:39]} 26. Re1 {[%clk 0:00:46]}  d4 {[%clk 0:01:39]} 27. Rxb4 {[%clk 0:00:25]}  Qd2 {[%clk 0:01:38]} 28. Reb1 {[%clk 0:00:18]}  Rxa2 {[%clk 0:01:30]} 29. Qg5 {[%clk 0:00:18]}  h6 {[%clk 0:01:25]} 30. Qg3 {[%clk 0:00:16]}  dxe3 {[%clk 0:01:25]} 31. h3 {[%clk 0:00:15]}  e2 {[%clk 0:01:18]} 32. Rc4 {[%clk 0:00:06]}  Rc2 {[%clk 0:01:14]} 33. Rxc2 {[%clk 0:00:04]}  Qxc2 {[%clk 0:01:15]} 34. Re1 {[%clk 0:00:04]}  Rd8 {[%clk 0:01:08]} 35. Qf2 {[%clk 0:00:03]}  Rd1 {[%clk 0:01:07]} 36. Kh2 {[%clk 0:00:03]}  Rxe1 {[%clk 0:01:04]} 37. Qxe1 {[%clk 0:00:00]}  Qd1 {[%clk 0:01:04]} 0-1


[Site "https://www.chess.com"]

[Event "Titled Tuesday Blitz August 22 Late 2023"]
[White "Cuenca Jimenez, Jose Fernando"]
[Black "only_strong_moves"]
[WhiteFideId "2255570"]
[WhiteElo "2671"]
[BlackElo "2515"]
[Result "1-0"]
[Round "10"]
[TimeControl "180+1"]
[Date "2023.08.22"]
[WhiteClock "0:00:09"]
[BlackClock "0:00:00"]
[Board "45"]

1. c4 {[%clk 0:03:00]}  e6 {[%clk 0:02:55]} 2. Nf3 {[%clk 0:02:59]}  Nf6 {[%clk 0:02:55]} 3. g3 {[%clk 0:02:58]}  d5 {[%clk 0:02:55]} 4. b3 {[%clk 0:02:58]}  d4 {[%clk 0:02:53]} 5. Bb2 {[%clk 0:02:55]}  c5 {[%clk 0:02:53]} 6. e3 {[%clk 0:02:51]}  Nc6 {[%clk 0:02:52]} 7. exd4 {[%clk 0:02:50]}  cxd4 {[%clk 0:02:53]} 8. Bg2 {[%clk 0:02:49]}  e5 {[%clk 0:02:41]} 9. O-O {[%clk 0:02:41]}  Bd6 {[%clk 0:02:39]} 10. b4 {[%clk 0:02:27]}  Nxb4 {[%clk 0:02:20]} 11. d3 {[%clk 0:01:00]}  Nc6 {[%clk 0:02:16]} 12. Nbd2 {[%clk 0:00:57]}  O-O {[%clk 0:02:16]} 13. Re1 {[%clk 0:00:54]}  Bf5 {[%clk 0:02:16]} 14. Bf1 {[%clk 0:00:49]}  Re8 {[%clk 0:02:04]} 15. Ng5 {[%clk 0:00:49]}  Bb4 {[%clk 0:01:56]} 16. a3 {[%clk 0:00:45]}  Ba5 {[%clk 0:01:51]} 17. Qc2 {[%clk 0:00:39]}  Rc8 {[%clk 0:01:41]} 18. Re2 {[%clk 0:00:36]}  b5 {[%clk 0:01:30]} 19. cxb5 {[%clk 0:00:30]}  Nb4 {[%clk 0:01:28]} 20. Qb3 {[%clk 0:00:24]}  Nxd3 {[%clk 0:01:03]} 21. Nxf7 {[%clk 0:00:24]}  Qd5 {[%clk 0:00:58]} 22. Qxd5 {[%clk 0:00:18]}  Nxd5 {[%clk 0:00:59]} 23. Nd6 {[%clk 0:00:15]}  Nxb2 {[%clk 0:00:59]} 24. Nxf5 {[%clk 0:00:09]}  Nc3 {[%clk 0:00:53]} 25. Ne4 {[%clk 0:00:04]}  Nxe2+ {[%clk 0:00:50]} 26. Bxe2 {[%clk 0:00:05]}  d3 {[%clk 0:00:49]} 27. Bg4 {[%clk 0:00:05]}  d2 {[%clk 0:00:46]} 28. Nxd2 {[%clk 0:00:05]}  Bxd2 {[%clk 0:00:46]} 29. Ne7+ {[%clk 0:00:06]}  Rxe7 {[%clk 0:00:45]} 30. Bxc8 {[%clk 0:00:07]}  Rc7 {[%clk 0:00:42]} 31. Be6+ {[%clk 0:00:06]}  Kf8 {[%clk 0:00:42]} 32. a4 {[%clk 0:00:07]}  Ke7 {[%clk 0:00:33]} 33. Bf5 {[%clk 0:00:07]}  g6 {[%clk 0:00:32]} 34. Bg4 {[%clk 0:00:05]}  Rc4 {[%clk 0:00:31]} 35. a5 {[%clk 0:00:04]}  Rxg4 {[%clk 0:00:25]} 36. b6 {[%clk 0:00:04]}  axb6 {[%clk 0:00:25]} 37. a6 {[%clk 0:00:05]}  Rd4 {[%clk 0:00:16]} 38. a7 {[%clk 0:00:05]}  Rd8 {[%clk 0:00:17]} 39. a8=Q {[%clk 0:00:06]}  Rxa8 {[%clk 0:00:17]} 40. Rxa8 {[%clk 0:00:07]}  Bb4 {[%clk 0:00:14]} 41. Ra7+ {[%clk 0:00:06]}  Ke6 {[%clk 0:00:14]} 42. Rxh7 {[%clk 0:00:07]}  Bc5 {[%clk 0:00:14]} 43. Kf1 {[%clk 0:00:06]}  Nd3 {[%clk 0:00:14]} 44. f3 {[%clk 0:00:07]}  b5 {[%clk 0:00:14]} 45. Ke2 {[%clk 0:00:07]}  Nc1+ {[%clk 0:00:14]} 46. Kd1 {[%clk 0:00:07]}  Nd3 {[%clk 0:00:13]} 47. Kd2 {[%clk 0:00:07]}  Nb4 {[%clk 0:00:12]} 48. Rb7 {[%clk 0:00:07]}  Nd5 {[%clk 0:00:09]} 49. Rxb5 {[%clk 0:00:07]}  Bg1 {[%clk 0:00:10]} 50. h3 {[%clk 0:00:05]}  Bh2 {[%clk 0:00:08]} 51. g4 {[%clk 0:00:05]}  Nf4 {[%clk 0:00:07]} 52. Rb6+ {[%clk 0:00:05]}  Kf7 {[%clk 0:00:05]} 53. h4 {[%clk 0:00:05]}  Bg3 {[%clk 0:00:06]} 54. h5 {[%clk 0:00:05]}  gxh5 {[%clk 0:00:07]} 55. gxh5 {[%clk 0:00:06]}  Nxh5 {[%clk 0:00:08]} 56. Ke3 {[%clk 0:00:05]}  Nf6 {[%clk 0:00:06]} 57. Rb7+ {[%clk 0:00:06]}  Ke6 {[%clk 0:00:06]} 58. Ke2 {[%clk 0:00:06]}  Kf5 {[%clk 0:00:06]} 59. Rb6 {[%clk 0:00:06]}  Bf4 {[%clk 0:00:06]} 60. Rb5 {[%clk 0:00:06]}  Nd5 {[%clk 0:00:07]} 61. Rxd5 {[%clk 0:00:06]}  Ke6 {[%clk 0:00:07]} 62. Rb5 {[%clk 0:00:06]}  Kf5 {[%clk 0:00:08]} 63. Kd3 {[%clk 0:00:07]}  Ke6 {[%clk 0:00:08]} 64. Ke4 {[%clk 0:00:07]}  Bg3 {[%clk 0:00:08]} 65. Rb6+ {[%clk 0:00:07]}  Ke7 {[%clk 0:00:07]} 66. Kf5 {[%clk 0:00:08]}  Bf4 {[%clk 0:00:08]} 67. Re6+ {[%clk 0:00:08]}  Kf7 {[%clk 0:00:08]} 68. Ra6 {[%clk 0:00:05]}  Ke7 {[%clk 0:00:07]} 69. Re6+ {[%clk 0:00:04]}  Kf7 {[%clk 0:00:08]} 70. Rxe5 {[%clk 0:00:03]}  Bxe5 {[%clk 0:00:09]} 71. Kxe5 {[%clk 0:00:04]}  Ke7 {[%clk 0:00:09]} 72. f4 {[%clk 0:00:05]}  Kf7 {[%clk 0:00:09]} 73. Kf5 {[%clk 0:00:05]}  Ke7 {[%clk 0:00:10]} 74. Kg6 {[%clk 0:00:06]}  Kf8 {[%clk 0:00:11]} 75. Kf6 {[%clk 0:00:06]}  Ke8 {[%clk 0:00:12]} 76. Kg7 {[%clk 0:00:06]}  Ke7 {[%clk 0:00:12]} 77. f5 {[%clk 0:00:07]}  Kd6 {[%clk 0:00:12]} 78. f6 {[%clk 0:00:08]}  Ke5 {[%clk 0:00:13]} 79. f7 {[%clk 0:00:09]}  Kd5 {[%clk 0:00:00]} 80. f8=Q {[%clk 0:00:09]} 1-0


[Site "https://www.chess.com"]

[Event "Titled Tuesday Blitz August 22 Late 2023"]
[White "Hjartarson, Johann"]
[Black "Jaskolka, Tomasz"]
[WhiteFideId "2300044"]
[BlackFideId "1170791"]
[WhiteElo "2649"]
[BlackElo "2510"]
[Result "0-1"]
[Round "10"]
[TimeControl "180+1"]
[Date "2023.08.22"]
[WhiteClock "0:00:53"]
[BlackClock "0:00:34"]
[Board "47"]

1. c4 {[%clk 0:03:00]}  c6 {[%clk 0:02:59]} 2. Nc3 {[%clk 0:02:59]}  d5 {[%clk 0:02:59]} 3. d4 {[%clk 0:02:59]}  Nf6 {[%clk 0:02:59]} 4. Nf3 {[%clk 0:02:59]}  e6 {[%clk 0:02:58]} 5. g3 {[%clk 0:02:56]}  Nbd7 {[%clk 0:02:53]} 6. Bg2 {[%clk 0:02:56]}  Be7 {[%clk 0:02:53]} 7. O-O {[%clk 0:02:54]}  dxc4 {[%clk 0:02:53]} 8. a4 {[%clk 0:02:53]}  a5 {[%clk 0:02:51]} 9. e4 {[%clk 0:02:51]}  O-O {[%clk 0:02:46]} 10. Qe2 {[%clk 0:02:51]}  Nb6 {[%clk 0:02:44]} 11. Rd1 {[%clk 0:02:51]}  Bb4 {[%clk 0:02:35]} 12. Ne5 {[%clk 0:02:49]}  Qe7 {[%clk 0:02:29]} 13. Bg5 {[%clk 0:02:43]}  h6 {[%clk 0:02:26]} 14. Bxf6 {[%clk 0:02:42]}  Qxf6 {[%clk 0:02:26]} 15. Nxc4 {[%clk 0:02:41]}  Nxc4 {[%clk 0:02:27]} 16. Qxc4 {[%clk 0:02:41]}  Bd7 {[%clk 0:02:15]} 17. e5 {[%clk 0:02:40]}  Qe7 {[%clk 0:02:15]} 18. Ne4 {[%clk 0:02:39]}  b5 {[%clk 0:02:10]} 19. Qe2 {[%clk 0:02:31]}  bxa4 {[%clk 0:02:00]} 20. h4 {[%clk 0:02:30]}  Rfd8 {[%clk 0:01:55]} 21. h5 {[%clk 0:02:22]}  Be8 {[%clk 0:01:55]} 22. f4 {[%clk 0:02:15]}  c5 {[%clk 0:01:35]} 23. dxc5 {[%clk 0:02:02]}  Bxc5+ {[%clk 0:01:34]} 24. Kh2 {[%clk 0:02:01]}  Rab8 {[%clk 0:01:28]} 25. Qc4 {[%clk 0:01:44]}  Rxd1 {[%clk 0:01:05]} 26. Rxd1 {[%clk 0:01:43]}  Ba7 {[%clk 0:00:56]} 27. Rd2 {[%clk 0:01:32]}  Bb5 {[%clk 0:00:51]} 28. Qc1 {[%clk 0:01:22]}  Be3 {[%clk 0:00:46]} 29. Qc3 {[%clk 0:01:20]}  Bxd2 {[%clk 0:00:47]} 30. Qxd2 {[%clk 0:01:20]}  Bc6 {[%clk 0:00:44]} 31. Nd6 {[%clk 0:01:15]}  Bxg2 {[%clk 0:00:43]} 32. Kxg2 {[%clk 0:01:15]}  Qc7 {[%clk 0:00:39]} 33. Kh3 {[%clk 0:01:13]}  Qc6 {[%clk 0:00:38]} 34. Qxa5 {[%clk 0:01:09]}  Qh1+ {[%clk 0:00:38]} 35. Kg4 {[%clk 0:01:09]}  Qd1+ {[%clk 0:00:36]} 36. Kh3 {[%clk 0:00:53]}  Qxh5+ {[%clk 0:00:34]} 0-1


[Site "https://www.chess.com"]

[Event "Titled Tuesday Blitz August 22 Late 2023"]
[White "Vafin, Ayrat"]
[Black "Almiron, Antonio"]
[WhiteFideId "4146530"]
[BlackFideId "3701166"]
[WhiteElo "2504"]
[BlackElo "2632"]
[Result "1-0"]
[Round "10"]
[TimeControl "180+1"]
[Date "2023.08.22"]
[WhiteClock "0:00:04"]
[BlackClock "0:00:18"]
[Board "48"]

1. Nf3 {[%clk 0:02:55]}  d5 {[%clk 0:02:59]} 2. g3 {[%clk 0:02:55]}  Nf6 {[%clk 0:02:58]} 3. Bg2 {[%clk 0:02:56]}  c5 {[%clk 0:02:59]} 4. O-O {[%clk 0:02:55]}  Nc6 {[%clk 0:02:58]} 5. d4 {[%clk 0:02:55]}  Bf5 {[%clk 0:02:51]} 6. dxc5 {[%clk 0:02:48]}  e6 {[%clk 0:02:51]} 7. Nd4 {[%clk 0:02:25]}  Bg6 {[%clk 0:02:48]} 8. Nxc6 {[%clk 0:02:23]}  bxc6 {[%clk 0:02:49]} 9. b4 {[%clk 0:02:22]}  Qb8 {[%clk 0:02:49]} 10. c3 {[%clk 0:02:16]}  a5 {[%clk 0:02:49]} 11. a3 {[%clk 0:02:06]}  h5 {[%clk 0:02:48]} 12. h4 {[%clk 0:01:24]}  Be7 {[%clk 0:02:32]} 13. Nd2 {[%clk 0:01:22]}  O-O {[%clk 0:02:14]} 14. Nb3 {[%clk 0:01:15]}  Bd8 {[%clk 0:01:55]} 15. Nd4 {[%clk 0:01:07]}  Qb7 {[%clk 0:01:47]} 16. Bg5 {[%clk 0:01:00]}  e5 {[%clk 0:01:31]} 17. Bxf6 {[%clk 0:00:47]}  Bxf6 {[%clk 0:01:22]} 18. Nb3 {[%clk 0:00:39]}  Bd8 {[%clk 0:01:12]} 19. f4 {[%clk 0:00:22]}  exf4 {[%clk 0:01:10]} 20. Rxf4 {[%clk 0:00:22]}  Qe7 {[%clk 0:01:00]} 21. Nd4 {[%clk 0:00:21]}  Qe3+ {[%clk 0:00:51]} 22. Kh2 {[%clk 0:00:21]}  Qxc3 {[%clk 0:00:45]} 23. Nxc6 {[%clk 0:00:21]}  Bc7 {[%clk 0:00:42]} 24. Rf3 {[%clk 0:00:19]}  Qb2 {[%clk 0:00:42]} 25. Ne7+ {[%clk 0:00:19]}  Kh7 {[%clk 0:00:42]} 26. Nxg6 {[%clk 0:00:17]}  fxg6 {[%clk 0:00:42]} 27. Rxf8 {[%clk 0:00:10]}  Rxf8 {[%clk 0:00:41]} 28. Rb1 {[%clk 0:00:08]}  Qxa3 {[%clk 0:00:29]} 29. Rb3 {[%clk 0:00:06]}  Qa4 {[%clk 0:00:26]} 30. Qxd5 {[%clk 0:00:06]}  axb4 {[%clk 0:00:26]} 31. Be4 {[%clk 0:00:07]}  Rf6 {[%clk 0:00:20]} 32. Qxh5+ {[%clk 0:00:06]}  Kg8 {[%clk 0:00:21]} 33. Bd5+ {[%clk 0:00:05]}  Kf8 {[%clk 0:00:18]} 34. Qh8+ {[%clk 0:00:05]}  Ke7 {[%clk 0:00:18]} 35. Qxg7+ {[%clk 0:00:05]}  Kd8 {[%clk 0:00:19]} 36. Qxf6+ {[%clk 0:00:05]}  Kc8 {[%clk 0:00:20]} 37. Qe6+ {[%clk 0:00:05]}  Kb8 {[%clk 0:00:21]} 38. Qg8+ {[%clk 0:00:04]}  Bd8 {[%clk 0:00:18]} 39. Qxd8+ {[%clk 0:00:04]} 1-0


[Site "https://www.chess.com"]